[Event "*** Titled Tuesday Blitz"]
[Site "Chess.com"]
[Date "2021.03.30"]
[Round "11"]
[White "azikom"]
[Black "Balla_Tamas"]
[Result "1-0"]
[WhiteElo "2692"]
[BlackElo "2534"]
[TimeControl "180+1"]
[EndTime "12:09:03 PDT"]
[Termination "azikom won on time"]

1. d4 {[%clk 0:03:00.9]} 1... e6 {[%clk 0:02:59.1]} 2. Nf3 {[%clk 0:02:59]} 2...
f5 {[%clk 0:02:58.4]} 3. c4 {[%clk 0:02:57.9]} 3... Nf6 {[%clk 0:02:58.1]} 4.
Bf4 {[%clk 0:02:52.8]} 4... b6 {[%clk 0:02:57.3]} 5. e3 {[%clk 0:02:52]} 5...
Bb7 {[%clk 0:02:57.3]} 6. h3 {[%clk 0:02:52]} 6... Bb4+ {[%clk 0:02:56.7]} 7.
Nbd2 {[%clk 0:02:46.6]} 7... O-O {[%clk 0:02:54.7]} 8. a3 {[%clk 0:02:46.4]}
8... Bxd2+ {[%clk 0:02:45.4]} 9. Nxd2 {[%clk 0:02:45.6]} 9... d6 {[%clk
0:02:46.1]} 10. Nf3 {[%clk 0:02:44.5]} 10... Nbd7 {[%clk 0:02:45.7]} 11. Bh2
{[%clk 0:02:44.2]} 11... Qe7 {[%clk 0:02:44.8]} 12. Be2 {[%clk 0:02:44.7]} 12...
Ne4 {[%clk 0:02:43.4]} 13. O-O {[%clk 0:02:44.6]} 13... e5 {[%clk 0:02:39.8]}
14. Rc1 {[%clk 0:02:43.1]} 14... f4 {[%clk 0:02:37.4]} 15. dxe5 {[%clk 0:02:42]}
15... dxe5 {[%clk 0:02:36.8]} 16. exf4 {[%clk 0:02:41.7]} 16... exf4 {[%clk
0:02:35.4]} 17. Re1 {[%clk 0:02:38.5]} 17... Rad8 {[%clk 0:01:37.8]} 18. Qc2
{[%clk 0:02:32.1]} 18... Ne5 {[%clk 0:01:02.7]} 19. Nxe5 {[%clk 0:02:21.7]}
19... Rd2 {[%clk 0:01:02.7]} 20. Qb3 {[%clk 0:02:11.3]} 20... Qxe5 {[%clk
0:01:02]} 21. c5+ {[%clk 0:02:09.3]} 21... Kh8 {[%clk 0:00:36.6]} 22. c6 {[%clk
0:02:07.8]} 22... Qd4 {[%clk 0:00:36]} 23. Qf3 {[%clk 0:01:41.3]} 23... Bc8
{[%clk 0:00:28.6]} 24. Rc4 {[%clk 0:01:36.5]} 24... Ng5 {[%clk 0:00:26]} 25. Qh5
{[%clk 0:01:14.2]} 25... Qe5 {[%clk 0:00:20]} 26. Bxf4 {[%clk 0:00:46.8]} 26...
Nxh3+ {[%clk 0:00:13.6]} 27. gxh3 {[%clk 0:00:31.3]} 27... Qf6 {[%clk 0:00:13]}
28. Qg5 {[%clk 0:00:22.2]} 28... Qf7 {[%clk 0:00:11.7]} 29. Re4 {[%clk
0:00:14.2]} 29... Rd5 {[%clk 0:00:09.4]} 30. Qg3 {[%clk 0:00:13.1]} 30... Bf5
{[%clk 0:00:08.7]} 31. Re5 {[%clk 0:00:12]} 31... Rd6 {[%clk 0:00:07.7]} 32.
Rxf5 {[%clk 0:00:11.4]} 32... Qxf5 {[%clk 0:00:07.1]} 33. Bxd6 {[%clk
0:00:11.9]} 33... cxd6 {[%clk 0:00:07.8]} 34. Bg4 {[%clk 0:00:11.5]} 34... Qc5
{[%clk 0:00:07.1]} 35. Qg2 {[%clk 0:00:09.7]} 35... h5 {[%clk 0:00:06.4]} 36.
Bf3 {[%clk 0:00:09.4]} 36... h4 {[%clk 0:00:05.7]} 37. b4 {[%clk 0:00:09.2]}
37... Qc3 {[%clk 0:00:05]} 38. Rf1 {[%clk 0:00:09.6]} 38... Rxf3 {[%clk
0:00:03.9]} 39. b5 {[%clk 0:00:09.3]} 39... Rf5 {[%clk 0:00:03.6]} 40. Qg4
{[%clk 0:00:09]} 40... Qe5 {[%clk 0:00:01.2]} 41. Qxh4+ {[%clk 0:00:08.5]} 41...
Rh5 {[%clk 0:00:01.4]} 42. Qc4 {[%clk 0:00:07.7]} 1-0

[Event "*** Titled Tuesday Blitz"]
[Site "Chess.com"]
[Date "2021.03.30"]
[Round "11"]
[White "lucachess49"]
[Black "Eloist"]
[Result "1-0"]
[WhiteElo "2443"]
[BlackElo "2345"]
[TimeControl "180+1"]
[EndTime "12:09:03 PDT"]
[Termination "lucachess49 won by resignation"]

1. d4 {[%clk 0:03:00.9]} 1... e6 {[%clk 0:02:59.4]} 2. c4 {[%clk 0:03:00.4]}
2... Nf6 {[%clk 0:02:59.8]} 3. Nc3 {[%clk 0:02:59]} 3... Bb4 {[%clk 0:02:59.3]}
4. e3 {[%clk 0:02:56.6]} 4... O-O {[%clk 0:02:58.4]} 5. Ne2 {[%clk 0:02:56]}
5... c6 {[%clk 0:02:58.4]} 6. a3 {[%clk 0:02:54.8]} 6... Ba5 {[%clk 0:02:58.5]}
7. Qc2 {[%clk 0:02:55.3]} 7... d5 {[%clk 0:02:57.4]} 8. Ng3 {[%clk 0:02:53.3]}
8... Nbd7 {[%clk 0:02:50.5]} 9. Be2 {[%clk 0:02:52.8]} 9... dxc4 {[%clk
0:02:49.1]} 10. Bxc4 {[%clk 0:02:53.7]} 10... e5 {[%clk 0:02:46.4]} 11. O-O
{[%clk 0:02:52.5]} 11... exd4 {[%clk 0:02:44.8]} 12. exd4 {[%clk 0:02:53.4]}
12... Nb6 {[%clk 0:02:15.8]} 13. Ba2 {[%clk 0:02:36.3]} 13... Nbd5 {[%clk
0:02:11.6]} 14. Bg5 {[%clk 0:02:34.2]} 14... Be6 {[%clk 0:02:09.7]} 15. Rae1
{[%clk 0:02:25.4]} 15... h6 {[%clk 0:02:06.1]} 16. Bxf6 {[%clk 0:01:56.9]} 16...
Qxf6 {[%clk 0:01:54.2]} 17. Bb1 {[%clk 0:01:56.1]} 17... g6 {[%clk 0:01:47]} 18.
f4 {[%clk 0:01:55.8]} 18... Qxd4+ {[%clk 0:01:45.8]} 19. Kh1 {[%clk 0:01:54.5]}
19... Nxc3 {[%clk 0:01:30.1]} 20. Rxe6 {[%clk 0:00:47.8]} 20... Nxb1 {[%clk
0:01:19.7]} 21. Re4 {[%clk 0:00:47.1]} 21... Qd5 {[%clk 0:00:54.9]} 22. Qxb1
{[%clk 0:00:45.4]} 22... Rfe8 {[%clk 0:00:52.4]} 23. f5 {[%clk 0:00:44.5]} 23...
Rxe4 {[%clk 0:00:25.1]} 24. Nxe4 {[%clk 0:00:45.4]} 24... Kg7 {[%clk 0:00:15.8]}
25. fxg6 {[%clk 0:00:39.4]} 25... fxg6 {[%clk 0:00:15.1]} 26. Nf6 {[%clk
0:00:38.6]} 26... Qe5 {[%clk 0:00:14]} 27. Ng4 {[%clk 0:00:35.2]} 27... Qe6
{[%clk 0:00:13.1]} 28. h3 {[%clk 0:00:33.3]} 28... Rf8 {[%clk 0:00:12.4]} 29.
Rxf8 {[%clk 0:00:31.3]} 29... Kxf8 {[%clk 0:00:11.6]} 30. Nxh6 {[%clk
0:00:31.3]} 30... Qe1+ {[%clk 0:00:10.7]} 31. Qxe1 {[%clk 0:00:30.5]} 31... Bxe1
{[%clk 0:00:11.6]} 32. Ng4 {[%clk 0:00:30.6]} 32... Bd2 {[%clk 0:00:11.4]} 33.
b3 {[%clk 0:00:29.8]} 33... Bc1 {[%clk 0:00:10.7]} 34. a4 {[%clk 0:00:29.5]}
34... b5 {[%clk 0:00:10.2]} 35. Kg1 {[%clk 0:00:26.7]} 35... a5 {[%clk
0:00:09.5]} 36. Kf1 {[%clk 0:00:26.5]} 36... Bb2 {[%clk 0:00:08.2]} 37. Ke2
{[%clk 0:00:26.6]} 37... Ke7 {[%clk 0:00:08.3]} 38. Kd3 {[%clk 0:00:26.7]} 38...
Kd6 {[%clk 0:00:08.6]} 39. Nf2 {[%clk 0:00:26.5]} 39... Bf6 {[%clk 0:00:08]} 40.
Ne4+ {[%clk 0:00:26]} 40... Ke6 {[%clk 0:00:08.4]} 41. Nxf6 {[%clk 0:00:26.4]}
41... Kxf6 {[%clk 0:00:09.2]} 42. Kd4 {[%clk 0:00:26.9]} 42... bxa4 {[%clk
0:00:05.9]} 43. bxa4 {[%clk 0:00:26.4]} 43... Kf5 {[%clk 0:00:05.6]} 44. g3
{[%clk 0:00:24.7]} 44... Kg5 {[%clk 0:00:02.5]} 45. Kc5 {[%clk 0:00:24.1]} 45...
Kf5 {[%clk 0:00:02.1]} 46. Kxc6 {[%clk 0:00:20.4]} 46... Ke4 {[%clk 0:00:03]}
47. Kb5 {[%clk 0:00:20.9]} 47... Kf3 {[%clk 0:00:03.3]} 48. Kxa5 {[%clk
0:00:21.4]} 48... Kxg3 {[%clk 0:00:03.6]} 49. Kb5 {[%clk 0:00:21.8]} 49... Kxh3
{[%clk 0:00:03.9]} 50. a5 {[%clk 0:00:22.4]} 50... g5 {[%clk 0:00:04.8]} 51. a6
{[%clk 0:00:22.9]} 51... g4 {[%clk 0:00:05.7]} 52. a7 {[%clk 0:00:23.6]} 52...
g3 {[%clk 0:00:06.6]} 53. a8=Q {[%clk 0:00:23.9]} 53... g2 {[%clk 0:00:07.5]}
54. Qf3+ {[%clk 0:00:22.8]} 54... Kh2 {[%clk 0:00:07.1]} 55. Qh5+ {[%clk
0:00:23.4]} 55... Kg1 {[%clk 0:00:07.2]} 56. Kc4 {[%clk 0:00:23.1]} 1-0

[Event "*** Titled Tuesday Blitz"]
[Site "Chess.com"]
[Date "2021.03.30"]
[Round "11"]
[White "Zipa5"]
[Black "annacramling"]
[Result "0-1"]
[WhiteElo "1914"]
[BlackElo "2082"]
[TimeControl "180+1"]
[EndTime "12:09:08 PDT"]
[Termination "annacramling won on time"]

1. Nf3 {[%clk 0:03:00.9]} 1... c5 {[%clk 0:02:59]} 2. c4 {[%clk 0:02:57.1]} 2...
Nc6 {[%clk 0:02:57.9]} 3. e3 {[%clk 0:02:55.7]} 3... e5 {[%clk 0:02:56.9]} 4.
Nc3 {[%clk 0:02:52.5]} 4... d6 {[%clk 0:02:56.8]} 5. Be2 {[%clk 0:02:49.3]} 5...
Nf6 {[%clk 0:02:56.8]} 6. d4 {[%clk 0:02:47.2]} 6... cxd4 {[%clk 0:02:55.1]} 7.
exd4 {[%clk 0:02:46.8]} 7... e4 {[%clk 0:02:56]} 8. Ng5 {[%clk 0:02:38.6]} 8...
Bf5 {[%clk 0:02:55.1]} 9. Qc2 {[%clk 0:02:26]} 9... Nxd4 {[%clk 0:02:51.5]} 10.
Qd1 {[%clk 0:02:18.3]} 10... Nxe2 {[%clk 0:02:47.5]} 11. Qxe2 {[%clk 0:02:11.9]}
11... Be7 {[%clk 0:02:31.9]} 12. Ngxe4 {[%clk 0:02:10.7]} 12... O-O {[%clk
0:02:30.2]} 13. O-O {[%clk 0:02:06.5]} 13... Re8 {[%clk 0:02:26.9]} 14. Ng3
{[%clk 0:01:56.4]} 14... Be6 {[%clk 0:02:19.8]} 15. Qd3 {[%clk 0:01:54]} 15...
Rc8 {[%clk 0:02:18.1]} 16. b3 {[%clk 0:01:51.8]} 16... Ng4 {[%clk 0:02:06.1]}
17. Bf4 {[%clk 0:01:39.3]} 17... Ne5 {[%clk 0:01:47.8]} 18. Qd2 {[%clk
0:01:36.1]} 18... a6 {[%clk 0:01:30]} 19. Rad1 {[%clk 0:01:31.6]} 19... Qc7
{[%clk 0:01:29.6]} 20. Nd5 {[%clk 0:01:23.3]} 20... Bxd5 {[%clk 0:01:22.8]} 21.
Qxd5 {[%clk 0:01:22.6]} 21... Qc5 {[%clk 0:01:21.9]} 22. Nf5 {[%clk 0:01:14.8]}
22... Qxd5 {[%clk 0:00:58.9]} 23. Rxd5 {[%clk 0:01:10.5]} 23... Rcd8 {[%clk
0:00:54.9]} 24. Nxe7+ {[%clk 0:01:06.3]} 24... Rxe7 {[%clk 0:00:51.8]} 25. Rfd1
{[%clk 0:01:05.6]} 25... f6 {[%clk 0:00:27.6]} 26. h3 {[%clk 0:00:53.6]} 26...
Re6 {[%clk 0:00:24.3]} 27. c5 {[%clk 0:00:43.3]} 27... Ng6 {[%clk 0:00:09.7]}
28. Bxd6 {[%clk 0:00:39.4]} 28... Re2 {[%clk 0:00:08.8]} 29. R1d2 {[%clk
0:00:37.4]} 29... Rxd2 {[%clk 0:00:05.8]} 30. Rxd2 {[%clk 0:00:35.1]} 30... Ne7
{[%clk 0:00:05.4]} 31. Re2 {[%clk 0:00:27.4]} 31... Nc6 {[%clk 0:00:02.7]} 32.
a3 {[%clk 0:00:25.1]} 32... b6 {[%clk 0:00:02.8]} 33. b4 {[%clk 0:00:21.8]}
33... bxc5 {[%clk 0:00:02.6]} 34. bxc5 {[%clk 0:00:21.3]} 34... Kf7 {[%clk
0:00:02.9]} 35. Rb2 {[%clk 0:00:20]} 35... Rd7 {[%clk 0:00:02.3]} 36. Rb6 {[%clk
0:00:18.8]} 36... Ne5 {[%clk 0:00:01.7]} 37. Rxa6 {[%clk 0:00:16.3]} 37... Nc4
{[%clk 0:00:02]} 38. Rc6 {[%clk 0:00:13.6]} 38... Nxa3 {[%clk 0:00:02]} 39. Rc7
{[%clk 0:00:12.2]} 39... Ke6 {[%clk 0:00:02.7]} 40. Rxd7 {[%clk 0:00:06.8]}
40... Kxd7 {[%clk 0:00:03.6]} 41. Kf1 {[%clk 0:00:03.4]} 41... Kc6 {[%clk
0:00:03.7]} 42. Ke2 {[%clk 0:00:03.1]} 42... Nc4 {[%clk 0:00:04]} 43. Kd3 {[%clk
0:00:02.9]} 43... Nxd6 {[%clk 0:00:04]} 44. cxd6 {[%clk 0:00:01.1]} 44... Kxd6
{[%clk 0:00:04.9]} 0-1

[Event "*** Titled Tuesday Blitz"]
[Site "Chess.com"]
[Date "2021.03.30"]
[Round "11"]
[White "Firouzja2003"]
[Black "Srinavasan"]
[Result "1-0"]
[WhiteElo "3118"]
[BlackElo "2985"]
[TimeControl "180+1"]
[EndTime "12:09:11 PDT"]
[Termination "Firouzja2003 won by resignation"]

1. d4 {[%clk 0:03:00.9]} 1... Nf6 {[%clk 0:02:59.1]} 2. Bg5 {[%clk 0:03:00.7]}
2... d5 {[%clk 0:02:57.7]} 3. e3 {[%clk 0:02:54.9]} 3... g6 {[%clk 0:02:55.5]}
4. Bxf6 {[%clk 0:02:48.3]} 4... exf6 {[%clk 0:02:56.4]} 5. c4 {[%clk 0:02:48.9]}
5... dxc4 {[%clk 0:02:56.7]} 6. Bxc4 {[%clk 0:02:49.8]} 6... Bd6 {[%clk
0:02:56.6]} 7. Nc3 {[%clk 0:02:49.8]} 7... c6 {[%clk 0:02:53.3]} 8. Nf3 {[%clk
0:02:49.2]} 8... Qe7 {[%clk 0:02:51.1]} 9. O-O {[%clk 0:02:48.5]} 9... O-O
{[%clk 0:02:51]} 10. Re1 {[%clk 0:02:47.7]} 10... Nd7 {[%clk 0:02:46.8]} 11. e4
{[%clk 0:02:46.6]} 11... Nb6 {[%clk 0:02:46.7]} 12. Bb3 {[%clk 0:02:46]} 12...
Bg4 {[%clk 0:02:46.7]} 13. h3 {[%clk 0:02:44.8]} 13... Bxf3 {[%clk 0:02:46.7]}
14. Qxf3 {[%clk 0:02:45.7]} 14... Rad8 {[%clk 0:02:46.9]} 15. Rad1 {[%clk
0:02:45.8]} 15... Kg7 {[%clk 0:02:42.2]} 16. a3 {[%clk 0:02:43.1]} 16... Bb8
{[%clk 0:02:31.1]} 17. g3 {[%clk 0:02:41.4]} 17... c5 {[%clk 0:02:27]} 18. d5
{[%clk 0:02:38.4]} 18... c4 {[%clk 0:02:11.7]} 19. Bc2 {[%clk 0:02:37]} 19... a6
{[%clk 0:02:10.2]} 20. Kg2 {[%clk 0:02:34.5]} 20... Nd7 {[%clk 0:02:07.4]} 21.
Qe3 {[%clk 0:02:33.6]} 21... Qc5 {[%clk 0:02:04.5]} 22. Qxc5 {[%clk 0:02:25.4]}
22... Nxc5 {[%clk 0:02:05.4]} 23. a4 {[%clk 0:02:26.2]} 23... Rd6 {[%clk
0:01:16]} 24. Rd4 {[%clk 0:02:19]} 24... Rb6 {[%clk 0:01:16.2]} 25. Rxc4 {[%clk
0:02:17.8]} 25... Nd7 {[%clk 0:01:03.7]} 26. Rb1 {[%clk 0:02:06.9]} 26... Bd6
{[%clk 0:01:01.3]} 27. f4 {[%clk 0:01:57.2]} 27... Rb4 {[%clk 0:00:59.4]} 28.
Rxb4 {[%clk 0:01:41.7]} 28... Bxb4 {[%clk 0:01:00.3]} 29. Na2 {[%clk 0:01:42.3]}
29... Bd6 {[%clk 0:01:00.5]} 30. b4 {[%clk 0:01:38.6]} 30... Rc8 {[%clk
0:00:59.4]} 31. Bd3 {[%clk 0:01:38.8]} 31... Nb6 {[%clk 0:00:53]} 32. a5 {[%clk
0:01:38.8]} 32... Nc4 {[%clk 0:00:49.4]} 33. Kf2 {[%clk 0:01:30.6]} 33... Na3
{[%clk 0:00:44.7]} 34. Rb3 {[%clk 0:01:28.6]} 34... Nc2 {[%clk 0:00:44.7]} 35.
Rb2 {[%clk 0:01:24.5]} 35... Na3 {[%clk 0:00:41.7]} 36. Ke3 {[%clk 0:01:21.3]}
36... g5 {[%clk 0:00:39.8]} 37. h4 {[%clk 0:00:42]} 37... h6 {[%clk 0:00:39.3]}
38. h5 {[%clk 0:00:39.7]} 38... Kf8 {[%clk 0:00:26.4]} 39. Rf2 {[%clk
0:00:36.9]} 39... Kg7 {[%clk 0:00:25.8]} 40. Kd2 {[%clk 0:00:21.7]} 40... Rc7
{[%clk 0:00:11.3]} 41. Ke3 {[%clk 0:00:19.9]} 41... Rc8 {[%clk 0:00:11.5]} 42.
Kf3 {[%clk 0:00:19.5]} 42... Rb8 {[%clk 0:00:05.6]} 43. Re2 {[%clk 0:00:19]}
43... b6 {[%clk 0:00:05]} 44. e5 {[%clk 0:00:18.8]} 44... fxe5 {[%clk
0:00:02.8]} 45. fxe5 {[%clk 0:00:19.7]} 45... Bf8 {[%clk 0:00:03.5]} 46. axb6
{[%clk 0:00:19.6]} 46... Rxb6 {[%clk 0:00:04.4]} 47. d6 {[%clk 0:00:19.1]} 47...
Rb8 {[%clk 0:00:03.7]} 48. Bxa6 {[%clk 0:00:11.9]} 48... f6 {[%clk 0:00:03.9]}
49. d7 {[%clk 0:00:10.1]} 49... fxe5 {[%clk 0:00:03.4]} 50. Rxe5 {[%clk
0:00:11]} 50... Bd6 {[%clk 0:00:01.7]} 51. Re8 {[%clk 0:00:10.8]} 1-0

[Event "*** Titled Tuesday Blitz"]
[Site "Chess.com"]
[Date "2021.03.30"]
[Round "11"]
[White "anon481216"]
[Black "GelmanAlexander"]
[Result "0-1"]
[WhiteElo "2523"]
[BlackElo "2654"]
[TimeControl "180+1"]
[EndTime "12:09:12 PDT"]
[Termination "GelmanAlexander won on time"]

1. d4 {[%clk 0:03:00.9]} 1... Nf6 {[%clk 0:02:59.8]} 2. c4 {[%clk 0:03:00.8]}
2... c5 {[%clk 0:02:59.9]} 3. d5 {[%clk 0:03:00.3]} 3... b5 {[%clk 0:03:00.1]}
4. cxb5 {[%clk 0:03:00.3]} 4... a6 {[%clk 0:03:00.7]} 5. bxa6 {[%clk 0:03:00.6]}
5... e6 {[%clk 0:03:01]} 6. Nc3 {[%clk 0:02:58.5]} 6... exd5 {[%clk 0:03:01.3]}
7. Nxd5 {[%clk 0:02:58.1]} 7... Nxa6 {[%clk 0:03:01.9]} 8. Nf3 {[%clk
0:02:56.4]} 8... Nxd5 {[%clk 0:03:00.4]} 9. Qxd5 {[%clk 0:02:55]} 9... Nc7
{[%clk 0:03:01.3]} 10. Qd1 {[%clk 0:02:52.3]} 10... d5 {[%clk 0:03:00.8]} 11. g3
{[%clk 0:02:52.5]} 11... g6 {[%clk 0:02:35.6]} 12. Bf4 {[%clk 0:02:38.3]} 12...
Bg7 {[%clk 0:02:30.6]} 13. Qd2 {[%clk 0:02:29]} 13... O-O {[%clk 0:02:28.7]} 14.
Bg2 {[%clk 0:02:26.8]} 14... Ne6 {[%clk 0:02:20.6]} 15. Bh6 {[%clk 0:02:25]}
15... Bxh6 {[%clk 0:02:10.6]} 16. Qxh6 {[%clk 0:02:24.5]} 16... Ba6 {[%clk
0:02:09.2]} 17. Qd2 {[%clk 0:02:14.4]} 17... Qb6 {[%clk 0:01:28.3]} 18. O-O
{[%clk 0:02:13.7]} 18... Rad8 {[%clk 0:01:26.8]} 19. b3 {[%clk 0:02:03.4]} 19...
Rfe8 {[%clk 0:01:25.2]} 20. Rfd1 {[%clk 0:01:57.4]} 20... d4 {[%clk 0:01:23.5]}
21. Ne5 {[%clk 0:01:55.7]} 21... Kg7 {[%clk 0:01:13.7]} 22. Nc4 {[%clk
0:01:49.9]} 22... Qc7 {[%clk 0:01:09.3]} 23. a4 {[%clk 0:01:37.5]} 23... Bb7
{[%clk 0:01:03]} 24. Bxb7 {[%clk 0:01:34.6]} 24... Qxb7 {[%clk 0:01:03.5]} 25.
Qd3 {[%clk 0:01:28.9]} 25... Ng5 {[%clk 0:01:00]} 26. f3 {[%clk 0:01:18.1]}
26... h5 {[%clk 0:00:50.4]} 27. h4 {[%clk 0:01:12.1]} 27... Nh7 {[%clk
0:00:48.9]} 28. a5 {[%clk 0:01:10]} 28... Nf6 {[%clk 0:00:48.6]} 29. a6 {[%clk
0:01:07.9]} 29... Qc6 {[%clk 0:00:44.8]} 30. a7 {[%clk 0:01:05]} 30... Nd5
{[%clk 0:00:44.6]} 31. Ra5 {[%clk 0:00:38.3]} 31... Ra8 {[%clk 0:00:36.3]} 32.
Rda1 {[%clk 0:00:35.2]} 32... Nc3 {[%clk 0:00:22.9]} 33. e4 {[%clk 0:00:32.9]}
33... f5 {[%clk 0:00:16.8]} 34. e5 {[%clk 0:00:28.6]} 34... f4 {[%clk
0:00:12.1]} 35. gxf4 {[%clk 0:00:23.2]} 35... Rf8 {[%clk 0:00:12.5]} 36. Ra6
{[%clk 0:00:19.5]} 36... Qe8 {[%clk 0:00:09.7]} 37. Kh2 {[%clk 0:00:13.8]} 37...
Rxf4 {[%clk 0:00:09.4]} 38. Kg3 {[%clk 0:00:13.1]} 38... Rf5 {[%clk 0:00:07.6]}
39. Nd6 {[%clk 0:00:12]} 39... Qxe5+ {[%clk 0:00:07.3]} 40. Kg2 {[%clk
0:00:09.7]} 40... Rf4 {[%clk 0:00:04.6]} 41. Nc4 {[%clk 0:00:04.7]} 41... Qe8
{[%clk 0:00:03.6]} 42. Kg3 {[%clk 0:00:01.9]} 42... Rf7 {[%clk 0:00:02.7]} 43.
f4 {[%clk 0:00:02.2]} 43... Rf8 {[%clk 0:00:02.5]} 44. Qf3 {[%clk 0:00:02.6]}
44... Qf7 {[%clk 0:00:02.7]} 45. f5 {[%clk 0:00:02]} 45... d3 {[%clk 0:00:01.8]}
46. f6+ {[%clk 0:00:01.6]} 46... Kh7 {[%clk 0:00:01.8]} 47. Qxd3 {[%clk
0:00:02.1]} 47... Qc7+ {[%clk 0:00:02.3]} 48. Kh3 {[%clk 0:00:01.8]} 48... Ne2
{[%clk 0:00:03.2]} 0-1

[Event "*** Titled Tuesday Blitz"]
[Site "Chess.com"]
[Date "2021.03.30"]
[Round "11"]
[White "ymoy"]
[Black "SilviusTiberius"]
[Result "1-0"]
[WhiteElo "2717"]
[BlackElo "2559"]
[TimeControl "180+1"]
[EndTime "12:09:13 PDT"]
[Termination "ymoy won by resignation"]

1. e4 {[%clk 0:03:00.9]} 1... e5 {[%clk 0:02:59.5]} 2. Nf3 {[%clk 0:03:00.8]}
2... Nc6 {[%clk 0:02:59.9]} 3. d4 {[%clk 0:03:00.2]} 3... exd4 {[%clk
0:02:59.8]} 4. Bc4 {[%clk 0:03:00.4]} 4... Nf6 {[%clk 0:02:58.3]} 5. e5 {[%clk
0:03:00]} 5... d5 {[%clk 0:02:58.1]} 6. Bb5 {[%clk 0:03:00.3]} 6... Ne4 {[%clk
0:02:57.1]} 7. Nxd4 {[%clk 0:03:00.8]} 7... Bc5 {[%clk 0:02:56.8]} 8. O-O {[%clk
0:02:23.3]} 8... O-O {[%clk 0:02:54.1]} 9. Nxc6 {[%clk 0:02:23.2]} 9... bxc6
{[%clk 0:02:52.6]} 10. Bxc6 {[%clk 0:02:24.1]} 10... Ba6 {[%clk 0:02:42.4]} 11.
Qxd5 {[%clk 0:01:50.3]} 11... Bxf1 {[%clk 0:01:30.8]} 12. Qxe4 {[%clk
0:01:48.6]} 12... Ba6 {[%clk 0:01:20.7]} 13. Nc3 {[%clk 0:01:46.8]} 13... Rb8
{[%clk 0:01:18]} 14. a3 {[%clk 0:01:37]} 14... Qd4 {[%clk 0:01:14.2]} 15. Qe1
{[%clk 0:01:34.6]} 15... Rfd8 {[%clk 0:01:04.9]} 16. Bg5 {[%clk 0:01:30.6]}
16... Rf8 {[%clk 0:00:42.2]} 17. b4 {[%clk 0:01:29]} 17... Qg4 {[%clk
0:00:34.5]} 18. Qd2 {[%clk 0:01:21.9]} 18... Bd4 {[%clk 0:00:31.8]} 19. h3
{[%clk 0:01:21.4]} 19... Bxc3 {[%clk 0:00:31.3]} 20. hxg4 {[%clk 0:01:20.9]}
20... Bxd2 {[%clk 0:00:31.5]} 21. Bxd2 {[%clk 0:01:21.8]} 21... Bb7 {[%clk
0:00:30]} 22. Ba4 {[%clk 0:01:18.2]} 22... Rbd8 {[%clk 0:00:30.3]} 23. Be3
{[%clk 0:01:15.3]} 23... Rd5 {[%clk 0:00:28.9]} 24. f4 {[%clk 0:01:12.8]} 24...
g5 {[%clk 0:00:28.5]} 25. Bb3 {[%clk 0:01:09.8]} 25... Rdd8 {[%clk 0:00:23.7]}
26. f5 {[%clk 0:01:09.3]} 26... Rfe8 {[%clk 0:00:23.4]} 27. e6 {[%clk 0:00:52]}
27... fxe6 {[%clk 0:00:23.2]} 28. fxe6 {[%clk 0:00:52.9]} 28... Kg7 {[%clk
0:00:16.4]} 29. Rf1 {[%clk 0:00:50.6]} 29... Bd5 {[%clk 0:00:13.8]} 30. Bxg5
{[%clk 0:00:38.9]} 30... Rd6 {[%clk 0:00:11.3]} 31. Bf4 {[%clk 0:00:38.5]} 31...
Bxb3 {[%clk 0:00:10.4]} 32. Bxd6 {[%clk 0:00:37.7]} 32... Bxc2 {[%clk 0:00:09]}
33. Rf7+ {[%clk 0:00:32.9]} 33... Kg6 {[%clk 0:00:09]} 34. Be7 {[%clk
0:00:30.5]} 34... Bb3 {[%clk 0:00:08.3]} 35. Kh2 {[%clk 0:00:27.2]} 35... Bd5
{[%clk 0:00:05.8]} 36. Kg3 {[%clk 0:00:25.5]} 36... c6 {[%clk 0:00:06.1]} 37. g5
{[%clk 0:00:23.8]} 37... Ra8 {[%clk 0:00:02.9]} 38. Rf6+ {[%clk 0:00:21.1]}
38... Kg7 {[%clk 0:00:03.2]} 39. Bc5 {[%clk 0:00:21.2]} 39... a5 {[%clk
0:00:03.4]} 40. e7 {[%clk 0:00:18.1]} 40... Bf7 {[%clk 0:00:01.4]} 41. Bd4
{[%clk 0:00:13.9]} 41... Kg8 {[%clk 0:00:01.4]} 42. Rxc6 {[%clk 0:00:13.4]}
42... axb4 {[%clk 0:00:01.8]} 43. axb4 {[%clk 0:00:14.2]} 43... Ra3+ {[%clk
0:00:02.1]} 44. Kh4 {[%clk 0:00:14.1]} 44... Be8 {[%clk 0:00:03]} 45. Rf6 {[%clk
0:00:13.3]} 45... Bf7 {[%clk 0:00:03.1]} 46. g3 {[%clk 0:00:11.7]} 46... Ra8
{[%clk 0:00:03.6]} 47. Bc5 {[%clk 0:00:12]} 47... Ra4 {[%clk 0:00:04.1]} 48. g4
{[%clk 0:00:11.7]} 48... Ra3 {[%clk 0:00:03.7]} 49. g6 {[%clk 0:00:11.7]} 49...
hxg6 {[%clk 0:00:03.3]} 50. Kg5 {[%clk 0:00:12.1]} 50... Ra6 {[%clk 0:00:03]}
51. Rxa6 {[%clk 0:00:11.9]} 51... Be6 {[%clk 0:00:03.2]} 52. Ra8+ {[%clk
0:00:12.6]} 52... Kf7 {[%clk 0:00:04.1]} 53. e8=Q+ {[%clk 0:00:12.6]} 53... Kg7
{[%clk 0:00:04.8]} 54. Qh8+ {[%clk 0:00:13]} 1-0